Cogmind - Beta 13 @@@ ROGUE MODE // 2024.03.31 @ 19:42:47 Player: MasterLemons Result: Destroyed by P2-5RK(R) with Subdweller Laser Performance ------------- Evolutions (0) 0 Regions Visited (2) 400 Robots Destroyed (31) 155 Value Destroyed (669) 669 Prototype IDs (2) 40 Alien Tech Used (0) 0 Bonus (35) 35 TOTAL SCORE: 1299 Bonus ------- High Alert Combat Kills 35 Cogmind --------- Core Integrity 0/250 Matter 33/300 Energy 250/250 System Corruption 1% Temperature Cool (6) Movement Treading (360) Ox2 Location -10/Subcaves Parts ------- > --- POWER (1) -------- Ion Engine > --- PROPULSION (2) --- Spiked Treads Spiked Treads > --- UTILITY (2) ------ Huge Storage Unit Tractor Beam > --- WEAPON (2) ------- (None) > --- INVENTORY (25) --- Light Treads Light Treads Small Storage Unit Terrain Scanner Seismic Detector Assault Rifle Light Assault Rifle Battle Cannon Peak State ------------ > --- POWER ------------ Ion Engine > --- PROPULSION ------- Light Treads Light Treads > --- UTILITY ---------- Small Storage Unit Hacking Suite > --- WEAPON ----------- Assault Rifle Grenade Launcher > --- INVENTORY -------- Ion Engine Light Treads Light Treads Light Assault Rifle [Rating: 9] Favorites ----------- Power Ion Engine Engine Ion Engine Propulsion Light Treads Treads Light Treads Utility Huge Storage Unit Device Tractor Beam Storage Huge Storage Unit Hackware Hacking Suite Weapon Grenade Launcher Ballistic Gun Assault Rifle Launcher Grenade Launcher Build | -11 -10 -10 ------- Run | Yrd Mat Sub Slots Evolved . | . . . Power . | . . . Propulsion . | . . . Utility . | . . . Weapon . | . . . Parts Attached 18 | 6 9 3 Power 2 | 1 1 . Engine 2 | 1 1 . Core . | . . . Reactor . | . . . Propulsion 7 | 2 2 3 Treads 7 | 2 2 3 Leg . | . . . Wheel . | . . . Hover . | . . . Flight . | . . . Utility 4 | 1 3 . Device 1 | . 1 . Storage 2 | 1 1 . Processor . | . . . Hackware 1 | . 1 . Protection . | . . . Artifact . | . . . Weapon 5 | 2 3 . Energy Gun . | . . . Energy Cannon . | . . . Ballistic Gun 2 | 2 . . Ballistic Cannon . | . . . Launcher 3 | . 3 . Special Weapon . | . . . Impact Weapon . | . . . Slashing Weapon . | . . . Piercing Weapon . | . . . Special Melee Weapon . | . . . Unidentified Prototypes . | . . . Parts Lost 3 | . 1 2 Power . | . . . Propulsion 1 | . 1 . Utility . | . . . Weapon 2 | . . 2 Highest Loss Streak 1 | . 1 1 To Critical Strikes . | . . . Average Slot Usage (%) 93 | . 90 95 Engine 14 | . 14 14 Treads 25 | . 22 28 Device 12 | . 10 14 Storage 14 | . 14 14 Ballistic Gun 4 | . 11 . Launcher 20 | . 16 23 Naked Turns . | . . . Heaviest Build 92 | 13 92 92 Greatest Support 40 | 40 40 40 Greatest Overweight (x) 4 | . 4 2 Average Overweight (x) 2 | . 2 2 Largest Inventory Capacity 25 | 8 25 25 Average Capacity 24 | 7 24 25 Most Carried 9 | 4 7 9 Average Carried 6 | 1 5 7 Final Capacity 25 | 8 25 25 Final Carried 8 | 1 7 8 Class Distribution -------------------- 100% | Mutant Dominant Class ---------------- Mutant | -10/Materials Mutant | -10/Subcaves Resources | -11 -10 -10 ----------- Run | Yrd Mat Sub Matter Collected 694 | 209 412 73 Remotely 298 | . 225 73 Salvage Created 467 | . 375 92 Parts 57 | . 54 3 Haulers Intercepted . | . . . Recyclers Shooed . | . . . Parts Field Recycled . | . . . Retrieved Matter . | . . . Parts Self-Destructed . | . . . Prevented . | . . . Kills | -11 -10 -10 ------- Run | Yrd Mat Sub Combat Hostiles Destroyed 19 | . 14 5 Guns 3 | . 3 . AOE 16 | . 11 5 Classes Destroyed 7 | . 6 1 Worker 6 | . 6 . Tunneler 2 | . 2 . Operator 1 | . 1 . Watcher 3 | . 3 . Swarmer 6 | . 6 . Grunt 8 | . 8 . Subdweller 5 | . . 5 Best Kill Streak 7 | . 7 2 Combat Bots Only 4 | . 4 2 Max Kills in Single Turn 3 | . 3 1 Gunslinging . | . . . Exploded 2 | . 2 1 Melee . | . . . Uniques/NPCs Destroyed . | . . . Combat | -11 -10 -10 -------- Run | Yrd Mat Sub Hostile Shots Fired 76 | . 42 34 Missed 21 | . 13 8 Damage Taken 1080 | . 481 599 Core 252 | . 76 176 Absorbed by Shields . | . . . Regen/Repaired (Parts) 42 | . 42 . Core Remaining (%) 100 | 100 . . Volleys Fired 39 | . 28 11 Largest 2 | . 2 2 Hottest 60 | . 50 60 Shots Fired 77 | . 55 22 Gun 28 | . 28 . Cannon . | . . . Launcher 49 | . 27 22 Special . | . . . Kinetic 28 | . 28 . Thermal . | . . . Explosive 49 | . 27 22 Electromagnetic . | . . . Robot Hit Streak 13 | . 10 13 Robot Miss Streak 3 | . 3 1 Penetration Max . | . . . Secondary Targets . | . . . Shots Hit Robots 41 | . 27 14 Core Hits 49 | . 37 12 Critical Kills . | . . . Critical Parts Destroyed . | . . . Critical Strikes . | . . . Melee Attacks . | . . . Impact . | . . . Slashing . | . . . Piercing . | . . . Sneak Attacks . | . . . Combat Hostiles . | . . . Follow-up Attacks . | . . . Damage Inflicted 2402 | . 1534 868 Guns 209 | . 209 . Cannons . | . . . Explosions 2169 | . 1323 846 Melee . | . . . Ramming 24 | . 2 22 Kinetic 209 | . 209 . Thermal . | . . . Explosive 2169 | . 1323 846 Electromagnetic . | . . . Impact . | . . . Slashing . | . . . Piercing . | . . . Highest Corruption 1 | . 1 1 Average Corruption 1 | . 1 1 Corruption Purged . | . . . Corruption Blocked . | . . . Effects 22 | . 6 16 Message Errors 4 | . 3 1 Matter Fused 7 | . 2 5 Heat Flow Errors 3 | . . 3 Energy Discharges 2 | . 1 1 Data Loss (minor) 2 | . . 2 Data Loss (major) 2 | . . 2 Misfires 2 | . . 2 Overload Shots . | . . . Overflow Damage 95 | . 95 . Projectiles . | . . . Explosions 95 | . 95 . Melee . | . . . Knockbacks . | . . . Impact . | . . . Kinetic . | . . . Secondary . | . . . Self-Inflicted Damage 226 | . 170 56 Shots 11 | . 8 3 Rammed 8 | . 1 7 Targets Rammed 8 | . 1 7 Kicked . | . . . Crushed . | . . . Highest Temperature 243 | . 28 243 Average Temperature 46 | . 14 98 Received Heat Transfer 132 | . 126 6 Effects 1 | . . 1 Energy Bleed 1 | . . 1 Siege Activations . | . . . Robots Corrupted . | . . . Combat Hostiles . | . . . Parts Fried . | . . . Impact Corruptions . | . . . Robots Melted . | . . . Combat Hostiles . | . . . Parts Melted . | . . . Heat Transferred . | . . . Parts Sabotaged . | . . . Parts Stolen . | . . . Parts Stripped . | . . . Power Chain Reactions . | . . . Alert | -11 -10 -10 ------- Run | Yrd Mat Sub Peak Influence 615 | . 615 . Initial . | . . . Average 267 | . 276 . Maximum Alert Level 2 | . 2 . Low Security (%) 38 | 100 36 . Level 1 38 | . 39 . Level 2 23 | . 23 . Level 3 . | . . . Level 4 . | . . . Level 5 . | . . . High Security . | . . . Max Security . | . . . Squads Dispatched 5 | . 5 . Investigation 3 | . 3 . Extermination . | . . . Reinforcement 2 | . 2 . Assault . | . . . Garrison . | . . . Intercept . | . . . Searches Triggered . | . . . Construction Impeded . | . . . Haulers Reinforced . | . . . Active Scanning Responses . | . . . Cargo Convoy Interrupts . | . . . Stealth | -11 -10 -10 --------- Run | Yrd Mat Sub Distress Signals 2 | . 2 . Communications Jammed . | . . . Distress Signals . | . . . Times Spotted 30 | . 23 7 Peak Tracking Total 6 | . 6 2 Tactical Retreats . | . . . Traps | -11 -10 -10 ------- Run | Yrd Mat Sub Traps Triggered 1 | . 1 . Indirectly . | . . . Trap Hack Attempts . | . . . Triggered . | . . . Disarmed . | . . . Reprogrammed . | . . . Reused . | . . . Traps Extracted . | . . . Installed . | . . . Triggered . | . . . Machines | -11 -10 -10 ---------- Run | Yrd Mat Sub Machines Disabled 4 | . 4 . Max in Single Turn 2 | . 2 . Machines Repaired . | . . . Machines Dismantled . | . . . Machines Sabotaged . | . . . Overloaded Fab Kills . | . . . Hacking | -11 -10 -10 --------- Run | Yrd Mat Sub Machines Accessed 7 | . 7 . Terminals 5 | . 5 . Fabricators . | . . . Repair Stations 1 | . 1 . Recycling Units 1 | . 1 . Scanalyzers . | . . . Garrison Access . | . . . Total Hacks 25 | . 25 . Successful 12 | . 12 . Failed 13 | . 13 . Catastrophic . | . . . Database Lockouts . | . . . Manual . | . . . Terminals 18 | . 18 . Fabricators . | . . . Repair Stations 4 | . 4 . Recycling Units 3 | . 3 . Scanalyzers . | . . . Garrison Access . | . . . Terminal Hacks 7 | . 7 . Record 2 | . 2 . Prototype ID Bank 2 | . 2 . Emergency Access Points 1 | . 1 . Alert Level 1 | . 1 . Recall Investigation 1 | . 1 . Fabricator Hacks . | . . . Repair Station Hacks 2 | . 2 . Scan Component 1 | . 1 . Repair 1 | . 1 . Recycling Unit Hacks 3 | . 3 . Report Inventory 1 | . 1 . Retrieve Components 2 | . 2 . Scanalyzer . | . . . Garrison Access Hacks . | . . . Unauthorized Hacks . | . . . Terminals . | . . . Fabricators . | . . . Repair Stations . | . . . Recycling Units . | . . . Scanalyzers . | . . . Garrison Access . | . . . Data Cores Recovered . | . . . Used . | . . . Hacking Detections 6 | . 6 . Full Trace Events 6 | . 6 . Feedback Events 1 | . 1 . Corruption 1 | . 1 . Feedback Blocked . | . . . Robot Schematics Acquired . | . . . Robots Built . | . . . Authchips . | . . . Time . | . . . Total Robot Build Rating . | . . . Part Schematics Acquired . | . . . Parts Built . | . . . Authchips . | . . . Time . | . . . Total Part Build Rating . | . . . Parts Repaired 1 | . 1 . Time 13 | . 13 . Parts Recycled . | . . . Recycled Matter . | . . . Retrieved Matter . | . . . Retrieved Components 2 | . 2 . Parts Scanalyzed . | . . . Part Schematics Acquired . | . . . Parts Damaged . | . . . Bothacking | -11 -10 -10 ------------ Run | Yrd Mat Sub Used RIF Installer . | . . . Robots Hacked . | . . . Non-combat . | . . . Combat . | . . . Robot Hacks Applied . | . . . Relay Couplers Released . | . . . Fabnet Peak Effective % . | . . . Robots Rewired . | . . . Allies Hacked . | . . . Hacks Repelled . | . . . Allies | -11 -10 -10 -------- Run | Yrd Mat Sub Total Allies . | . . . Largest Group . | . . . Highest-Rated Group . | . . . Highest-Rated Ally . | . . . Total Orders . | . . . Ally Attacks . | . . . Total Damage . | . . . Kills . | . . . Allies Corrupted . | . . . Allies Melted . | . . . Intel | -11 -10 -10 ------- Run | Yrd Mat Sub Robot Analysis Total . | . . . Derelict Logs Recovered 3 | . . 3 Drone Launches . | . . . Drone Recoveries . | . . . Exploration | -11 -10 -10 ------------- Run | Yrd Mat Sub Turns Passed 4894 | 72 2117 2705 Spaces Moved 1375 | 46 563 766 Core 12 | 12 . . Treads 1363 | 34 563 766 Legs . | . . . Wheels . | . . . Hover . | . . . Flight . | . . . Fastest Speed 50 | 50 160 320 Average Speed 341 | 131 354 344 Slowest Speed 480 | 160 480 360 Overloaded Moves . | . . . Propulsion Burnouts . | . . . Robots Hopped . | . . . Cave-ins Triggered . | . . . Exploration Rate (%) 52 | 4 88 64 Regions Visited 2 Branch Regions 1 Pre-discovered Areas . | . . . Known Exits Taken . | . . . Unknown Exits Taken 2 | 1 1 . Scrap Searched 1 | . . 1 Spaces Dug . | . . . Terrain Destroyed 288 | . 170 118 Melee . | . . . Projectile . | . . . AOE 288 | . 170 118 Terrain Rammed . | . . . Walls Destroyed . | . . . Machines Disabled . | . . . Actions | -11 -10 -10 --------- Run | Yrd Mat Sub Total 1477 | 58 627 792 Wait 13 | . 13 . Move 1373 | 45 562 766 Hop . | . . . Pick Up 21 | 7 11 3 Fast Attach . | . . . Attach 11 | 6 5 . Detach 2 | . 2 . Swap 7 | . 4 3 Drop 3 | . 1 2 Fire 39 | . 28 11 Melee . | . . . Ram . | . . . Kick . | . . . Crush 8 | . 1 7 Escape Stasis . | . . . Rewire . | . . . Trap . | . . . Miscellaneous . | . . . Route ------- -11/Scrapyard -10/Materials (discovered 5 exits: [*Mat x2] / [*Min x2] / [*Sub]) -10/Subcaves (discovered 1 exit: [*Mat]) History --------- Turn | Location | Event 5 | -11/Scrapyard | Discovered new exit (range 14) 73 | -11/Scrapyard | Entered Materials 312 | -10/Materials | Build established: Mutant 469 | -10/Materials | Discovered new exit (range 16) 650 | -10/Materials | Repaired Grenade Launcher 697 | -10/Materials | Discovered new exit (range 7) 898 | -10/Materials | Discovered new exit (range 15) 1531 | -10/Materials | Discovered new exit (range 14) 1953 | -10/Materials | Discovered new exit (range 5) 2190 | -10/Materials | Entered Subcaves 2366 | -10/Subcaves | Discovered new exit (range 11) 2383 | -10/Subcaves | Shifting Twisted Machinery released Sub. Monowheel 2600 | -10/Subcaves | Shifting Twisted Machinery released Spk. Treads 4032 | -10/Subcaves | Core integrity fell below 50% 4622 | -10/Subcaves | Learned 4 Materials zone layouts 4838 | -10/Subcaves | Learned Materials stockpile data 4871 | -10/Subcaves | Core integrity fell below 20% 4895 | -10/Subcaves | Destroyed by P2-5RK(R) with Subdweller Laser Last Messages --------------- Acquired 19 matter. Subatomizers dissect the Sub. Optics. The unstable cave ceiling collapses. Subatomizers dissect the Sub. Optics. System corrupted: Matter fused (-8). Subatomizers dissect the Sub. Optics, destroying it. System corrupted: Component data lost. The unstable cave ceiling collapses. System corrupted: Heat flow error (+178). :D,|VTMAJY7%SKLETALCS Acquired derelict log, extracted data. Data stored: Materials zone layouts (x4). System corrupted: Substantial component data lost. System corrupted: Matter fused (-6). System corrupted: Heat flow error (+106). Acquired derelict log, extracted data. Data stored: Materials stockpile data. Slammed into 1E-8KK(R). Grenade Launcher destroyed. Slammed into 1E-8KK(R). Map ----- +----------------------------------------------------+ | ??????????????????????????????????????# " ## | | ?????????????????????????????????????## # | | ????????????????????????????????????## | | ???????????????????????????????????## | | ???????????????????????????????????# ## | | ???????????????????????????????????## " ### | | ???????????????????????????????????## "" ### | | ???????????????????????????????????# """ ### | | ???????????????????????????????????## #?## | | ????????????????????????????????????## #??# | | ?????????????????????????????????????###### ##?? | | ??????????????????????????????????????????## ##? | | ???????????????????????????????????????????## ## | | ????????????????????????????????????????????# | | ????????????????????????????????????????????### | | ??????????????????????????????????????????????# | | ??????????????????????????????????????????????# | | ??????????????????????????????????????????????# | | ??????????????????????????????????????????????# | | ?????????????????????????????????????????????## | | ????????????????????????????????????####??#### | | ???????????????????????####????????## ### | | ?????????????########### #####????# | | ?????????????#" ## #????# # | | ????????????#" R #????## # | | ???????????#" @ #?????## ## | | ???????????#" R ## ###??###### ###? | | ??????????? " #### ???### #### # # ##??? | | ?????????????????#""??????# ##???? | | ?????????????????#????????### # #????? | | ????????????????????????????### ### ####????? | | ??????????????????????????????#### # #???????? | | ?????????????????????????????????## #???????? | | ??????????????????????????????????# ##???????? | | ??????????????????????????????????#######????????? | | ?????????????????????????????????????????????????? | | ?????????????????????????????????????????????????? | | ?????????????????????????????????????????????????? | | ?????????????????????????????????????????????????? | | ?????????????????????????????????????????????????? | | ?????????????????????????????????????????????????? | | ?????????????????????????????????????????????????? | | ?????????????????????????????????????????????????? | | ?????????????????????????????????????????????????? | | ?????????????????????????????????????????????????? | | ?????????????????????????????????????????????????? | | ?????????????????????????????????????????????????? | | ?????????????????????????????????????????????????? | | ?????????????????????????????????????????????????? | | ?????????????????????????????????????????????????? | +----------------------------------------------------+ Best States ------------- Heat Dissipation 25 Energy Generation 10 Energy Capacity 250 Matter Stores 267 Matter Capacity 300 Sight Range 16 Terrain Scan Density 10 Evasion (%) 50 Recoil Reduction 2 Offensive Hacking 10 Item Schematics ----------------- None Robot Schematics ------------------ None Fabricated ------------ Nothing Alien Tech Used ----------------- None Achievements -------------- GoHome() Maybe Next Time I'll Detach My Launcher Challenges ------------ None Game ------ Seed PulseProtonRegenerator Manual? 0 Play Time 00:18:14 Cumulative 2.2 hours Start 2024.03.31 @ 19:19:19 End 2024.03.31 @ 19:42:47 Sessions 3 Manual Loads 0 Difficulty Rogue Special Mode None Game No. 9 Rogue 6 Adventurer 3 Explorer 0 Win Type - Total 0 Types 0/0/0/0/0/0/0/0/0 Lore% 2 Gallery% 4 Achievement% 8 Wizard Run 0 Options --------- Layout 1 ASCII 0 Keyboard 0 Movement Mouse Keybinds 0 Fullscreen 1 Font 32/SmallcapsGlow Map View 77x35 Zoom Use 0% Tactical HUD 0 Map Filters NONE Filters NONE Steam 1 RUN: 9779d304-bd78-460b-b39c-af6bf57172dd